bitfinex/quotes_SOLUSD_20240708
["timestamp","ask_amount","ask_price","bid_price","bid_amount"]
[1720482360384,7.49395595,139.64,139.6,9.89]
[1720482360996,17.38395595,139.64,139.59,9.89]
[1720482361184,7.49395595,139.64,139.59,9.89]
[1720482361778,20.0,139.63,139.59,9.89]
[1720482363076,7.49395595,139.64,139.59,9.89]
[1720482363277,3.69978517,139.7,139.63,9.89]
[1720482363488,12.92724683,139.69,139.66,9.89]
[1720482363684,7.49036051,139.71,139.68,9.89]
[1720482363872,16.2532,139.73,139.69,9.89]
[1720482364083,12.92238455,139.72,139.69,9.89]
[1720482364283,12.92238455,139.71,139.69,9.89]
[1720482364488,9.89,139.74,139.69,9.89]
[1720482364697,12.92234322,139.73,139.69,9.89]
[1720482365013,9.89,139.74,139.69,9.89]
[1720482365014,12.92234322,139.72,139.69,9.89]
[1720482365302,9.89,139.74,139.69,9.89]
[1720482365682,8.35890334,139.75,139.71,9.89]
[1720482365884,12.92083635,139.74,139.71,9.89]
[1720482366084,8.35890334,139.75,139.71,9.89]
[1720482367588,0.8678871,139.75,139.72,9.89]
[1720482367893,0.8678871,139.75,139.74,9.89]
[1720482368898,0.8678871,139.75,139.71,17.8941]
[1720482369085,0.8678871,139.75,139.74,9.89]
[1720482370798,0.8678871,139.75,139.74,57.3501]
[1720482371024,0.8678871,139.75,139.74,77.3501]
[1720482371805,0.8678871,139.75,139.74,77.5201]
[1720482372615,0.8678871,139.75,139.74,77.3501]
[1720482372990,7.48634847,139.84,139.74,77.3501]
[1720482372991,7.48634847,139.84,139.77,7.1541]
[1720482373191,7.48634847,139.84,139.79,9.89]
[1720482373507,7.48634847,139.84,139.76,17.8868]
[1720482373726,20.0,139.83,139.74,15.7398]
[1720482373911,20.0,139.83,139.75,9.89]
[1720482374298,0.34,139.82,139.75,9.89]
[1720482374500,9.89,139.78,139.71,6.5039]
[1720482374714,9.89,139.78,139.73,9.89]
[1720482375099,32.2891,139.79,139.74,9.89]
[1720482375427,10.23,139.8,139.75,9.89]
[1720482375620,20.0,139.83,139.74,6.4569]
[1720482375795,10.06,139.83,139.78,9.89]
[1720482376198,0.17,139.83,139.74,7.1561]
[1720482376500,9.89,139.79,139.74,9.89]
[1720482376690,6.327,139.82,139.7,33.6347]
[1720482376691,10.23,139.78,139.73,9.89]
[1720482376894,10.06,139.78,139.73,9.89]
[1720482377093,9.89,139.78,139.73,9.89]
[1720482377405,9.89,139.8,139.75,9.89]
[1720482377604,9.89,139.79,139.7,33.6347]
[1720482377821,9.89,139.78,139.73,9.89]
[1720482378130,9.89,139.77,139.72,9.89]
[1720482378293,0.17,139.79,139.73,9.89]
[1720482378492,9.89,139.78,139.73,9.89]
[1720482378688,0.17,139.8,139.74,9.89]
[1720482378903,20.34,139.81,139.75,9.89]
[1720482379602,20.0,139.81,139.76,9.89]
[1720482379818,20.0,139.81,139.77,9.89]
[1720482380425,29.89,139.81,139.76,9.89]
[1720482382536,7.48634847,139.84,139.76,9.89]
[1720482382836,0.17,139.83,139.77,9.89]
[1720482383013,7.48634847,139.84,139.77,9.89]
[1720482383207,7.48634847,139.84,139.78,9.89]
[1720482383615,9.89,139.83,139.78,9.89]
[1720482383821,15.33958112,139.85,139.79,9.89]
[1720482384036,9.89,139.84,139.79,9.89]
[1720482384402,9.89,139.85,139.8,9.89]
[1720482384830,10.06,139.84,139.77,23.3843]
[1720482385007,10.06,139.85,139.8,9.89]
[1720482385206,9.89,139.85,139.8,9.89]
[1720482385515,7.48729734,139.86,139.8,9.89]
[1720482385904,9.89,139.85,139.8,9.89]
[1720482386432,9.89,139.85,139.78,7.154]
[1720482386433,7.48729734,139.86,139.82,9.89]
[1720482386935,7.48729734,139.86,139.78,17.8846]
[1720482387135,9.89,139.85,139.8,9.89]
[1720482387437,9.88046822,139.89,139.81,9.89]
[1720482387743,27.82924847,139.88,139.81,9.89]
[1720482388905,7.48924847,139.88,139.81,9.89]
[1720482389123,7.48924847,139.88,139.82,9.89]
[1720482389948,9.89,139.87,139.82,9.89]
[1720482390229,0.8678871,139.89,139.85,17.0402]
[1720482390442,0.8678871,139.89,139.86,9.89]
[1720482390606,0.8678871,139.89,139.85,9.89]
[1720482390806,9.89,139.87,139.81,7.152]
[1720482391035,9.89,139.87,139.82,9.89]
[1720482391230,0.8678871,139.89,139.84,9.89]
[1720482391433,0.8678871,139.89,139.83,7.1515]
[1720482391616,0.8678871,139.89,139.85,9.89]
[1720482392008,0.8678871,139.89,139.8,17.8814]
[1720482392227,0.8678871,139.89,139.81,0.17]
[1720482392409,0.8678871,139.89,139.81,0.34]
[1720482392739,0.8678871,139.89,139.85,9.89]
[1720482392909,20.8678871,139.89,139.85,9.89]
[1720482393517,0.8678871,139.89,139.85,9.89]
[1720482395042,20.8678871,139.89,139.85,9.89]
[1720482395343,30.7578871,139.89,139.84,9.89]
[1720482396315,9.89,139.85,139.76,22.9963]
[1720482396618,9.89,139.83,139.78,9.89]
[1720482396806,36.3346,139.87,139.79,9.89]
[1720482397010,9.89,139.86,139.81,9.89]
[1720482397304,6.0103,139.88,139.82,9.89]
[1720482397621,6.0103,139.88,139.8,17.8819]
[1720482397622,20.0,139.87,139.83,9.89]
[1720482397937,29.89,139.87,139.82,9.89]
[1720482398468,29.89,139.87,139.76,62.5563]
[1720482398469,0.17,139.86,139.77,17.8857]
[1720482398609,0.34,139.86,139.77,17.8857]
[1720482398809,9.89,139.85,139.79,9.89]
[1720482399018,9.89,139.85,139.8,9.89]
[1720482400630,29.89,139.87,139.81,9.89]
[1720482400941,37.38059461,139.87,139.81,9.89]
[1720482401125,9.89,139.86,139.81,9.89]
[1720482402135,9.89,139.86,139.78,7.154]
[1720482402440,27.49059461,139.87,139.8,9.89]
[1720482402441,9.89,139.85,139.8,9.89]
[1720482402817,27.49059461,139.87,139.81,9.89]
[1720482403020,9.89,139.86,139.81,9.89]
[1720482403219,7.49059461,139.87,139.81,9.89]
[1720482403538,0.8678871,139.89,139.85,9.89]
[1720482404429,0.8678871,139.89,139.87,9.89]
[1720482404651,0.8678871,139.89,139.85,7.1504]
[1720482405229,0.8678871,139.89,139.83,24.396]
[1720482405230,7.48628806,139.93,139.87,16.3345]
[1720482405430,25.8841,140.01,139.89,7.1484]
[1720482405631,7.48341102,139.98,139.89,7.1484]
[1720482405960,40.55190496,140.01,139.89,7.1484]
[1720482406124,7.48337628,139.98,139.89,7.1484]
[1720482406469,40.55190496,140.01,139.9,7.1479]
[1720482406470,34.89668112,140.01,139.9,7.1479]
[1720482406637,15.22668112,140.01,139.91,7.1472]
[1720482406957,7.48324384,140.0,139.89,25.0191]
[1720482407135,20.0,139.99,139.89,17.8711]
[1720482407330,20.0,139.99,139.89,25.0191]
[1720482407659,20.0,139.99,139.9,7.1478]
[1720482407958,20.0,139.99,139.89,17.8711]
[1720482407959,20.0,139.99,139.89,25.0195]
[1720482408248,39.67,139.99,139.87,16.3345]
[1720482408634,0.17,139.98,139.87,16.3345]
[1720482408829,0.34,139.98,139.87,23.4837]
[1720482409449,0.34,139.98,139.87,23.4838]
[1720482410034,0.34,139.98,139.87,16.3345]
[1720482410351,0.34,139.98,139.86,17.8744]
[1720482411235,21.0681,139.97,139.83,42.82]
[1720482411435,21.0681,139.97,139.8,6.2668]
[1720482411436,0.17,139.92,139.8,6.2668]
[1720482411853,20.34,139.92,139.79,23.7854]
[1720482412028,0.17,139.89,139.79,23.7854]
[1720482412232,20.34,139.89,139.79,23.7854]
[1720482412435,20.34,139.89,139.8,7.153]
[1720482414046,26.6468,139.89,139.8,7.153]
[1720482415253,26.6468,139.89,139.81,7.1525]
[1720482417150,34.13239708,139.89,139.81,7.1525]
[1720482417553,34.13239708,139.89,139.82,7.1517]
[1720482417764,34.13239708,139.89,139.81,7.1524]
[1720482418374,33.96239708,139.89,139.8,25.0346]
[1720482418847,33.96239708,139.89,139.81,7.1524]
[1720482420350,33.96239708,139.89,139.8,25.0348]
[1720482420557,0.17,139.86,139.76,253.1]
[1720482420758,20.17,139.86,139.76,253.1]
[1720482420961,20.34,139.86,139.76,253.1]
[1720482421973,20.34,139.86,139.76,260.2551]
[1720482422556,20.34,139.86,139.76,253.1]
[1720482422859,20.34,139.86,139.75,23.1315]
[1720482422860,20.34,139.86,139.75,7.1555]
[1720482423560,20.34,139.86,139.74,25.0461]
[1720482423760,0.17,139.84,139.74,25.0461]
[1720482423965,0.17,139.82,139.72,7.1567]
[1720482424159,0.34,139.82,139.71,41.5262]
[1720482424361,20.34,139.82,139.71,41.5262]
[1720482425260,20.34,139.82,139.71,25.0511]
[1720482425477,20.34,139.82,139.71,17.8936]
[1720482427079,20.34,139.82,139.73,7.1565]
[1720482427277,20.34,139.82,139.72,7.1571]
[1720482427485,0.17,139.8,139.71,25.0512]
[1720482427782,20.0,139.8,139.71,17.8936]
[1720482428879,20.0,139.8,139.73,7.1565]
[1720482431893,7.48656974,139.81,139.71,19.84]
[1720482432177,7.48656974,139.81,139.73,7.1565]
[1720482432564,7.48656974,139.81,139.73,17.8907]
[1720482433286,7.48656974,139.81,139.75,17.8885]
[1720482433494,6.1355,139.83,139.77,17.8856]
[1720482433659,7.47870703,139.86,139.79,7.1534]
[1720482435074,7.47870703,139.86,139.81,7.1522]
[1720482435271,6.079,139.87,139.8,7.1529]
[1720482435471,6.079,139.87,139.76,18.0573]
[1720482435668,6.079,139.87,139.78,7.1539]
[1720482436278,0.17,139.84,139.77,20.0]
[1720482436665,0.17,139.84,139.76,25.042]
[1720482436864,0.17,139.84,139.75,7.1554]
[1720482437192,20.34,139.84,139.74,7.1561]
[1720482437368,20.34,139.84,139.75,7.1554]
[1720482437771,20.0,139.84,139.76,7.1546]
[1720482438086,20.0,139.84,139.77,7.1544]
[1720482438674,0.34,139.83,139.72,17.8924]
[1720482438863,0.34,139.83,139.73,20.17]
[1720482439065,0.34,139.83,139.74,7.1557]
[1720482439380,20.0,139.84,139.74,18.0592]
[1720482439584,20.0,139.84,139.75,0.17]
[1720482439774,20.0,139.84,139.74,18.0592]
[1720482440093,0.17,139.83,139.75,7.1552]
[1720482440395,0.17,139.83,139.74,25.0452]
[1720482441370,0.17,139.83,139.75,7.1556]
[1720482445778,7.6489511,139.83,139.75,7.1556]
[1720482446196,7.4789511,139.83,139.76,7.1549]
[1720482448693,0.17,139.8,139.67,15.518]
[1720482448898,19.67,139.79,139.67,15.518]
[1720482449193,19.67,139.79,139.7,7.158]
[1720482449194,0.17,139.78,139.7,7.158]
[1720482449401,0.34,139.78,139.7,7.158]
[1720482451203,0.34,139.78,139.71,17.8935]
[1720482451379,0.34,139.78,139.71,25.051]
[1720482451586,0.34,139.78,139.71,17.8935]
[1720482453393,0.34,139.78,139.71,25.051]
[1720482453705,0.34,139.78,139.71,17.8935]
[1720482454006,15.2508,139.76,139.68,17.8977]
[1720482454303,0.17,139.75,139.68,17.8977]
[1720482455291,0.17,139.74,139.65,17.9012]
[1720482455487,0.17,139.74,139.65,25.0618]
[1720482456008,0.17,139.72,139.65,25.0618]
[1720482456308,0.17,139.72,139.66,7.1602]
[1720482456683,7.49156404,139.73,139.65,17.9012]
[1720482456885,7.49156404,139.73,139.68,7.1588]
[1720482457212,15.0808,139.76,139.69,17.8961]
[1720482457406,15.0808,139.76,139.7,7.158]
[1720482457791,15.0808,139.76,139.65,17.901]
[1720482458106,19.67,139.74,139.65,17.901]
[1720482458309,19.67,139.74,139.64,7.1607]
[1720482458310,0.17,139.72,139.64,7.1607]
[1720482458487,6.5882,139.69,139.61,17.9063]
[1720482458693,6.5882,139.69,139.64,7.1611]
[1720482459386,15.0808,139.71,139.63,17.9036]
[1720482459585,15.0808,139.71,139.66,7.1601]
[1720482459890,15.0808,139.71,139.63,7.1614]
[1720482460204,0.17,139.7,139.61,25.0688]
[1720482460393,0.34,139.7,139.62,7.1622]
[1720482461719,15.0808,139.71,139.63,17.9033]
[1720482462590,15.0808,139.71,139.64,7.1608]
[1720482462785,6.5882,139.72,139.67,7.1593]
[1720482463007,6.5882,139.72,139.66,7.1601]
[1720482463519,6.5882,139.72,139.65,17.901]
[1720482463683,16.6624,139.75,139.67,17.8985]
[1720482463883,16.6624,139.75,139.69,7.1584]
[1720482465915,6.5402,139.76,139.66,20.17]
[1720482466127,16.3806,139.78,139.73,7.1565]
[1720482466985,16.3806,139.78,139.72,25.0491]
[1720482467203,16.3806,139.78,139.68,17.8977]
[1720482467483,16.3806,139.78,139.71,7.1576]
[1720482468302,16.3806,139.78,139.7,25.0526]
[1720482468809,16.3806,139.78,139.71,7.1575]
[1720482469306,16.3806,139.78,139.72,7.1571]
[1720482469692,16.3806,139.78,139.71,7.1576]
[1720482469892,16.3806,139.78,139.7,25.0526]
[1720482470102,0.17,139.77,139.67,17.8987]
[1720482470295,20.34,139.77,139.67,25.0582]
[1720482471403,20.34,139.77,139.68,7.1591]
[1720482471990,0.17,139.75,139.64,278.1639]
[1720482472191,0.17,139.73,139.64,271.0028]
[1720482472403,20.34,139.73,139.64,278.1638]
[1720482472711,20.34,139.73,139.64,271.0028]
[1720482473104,0.17,139.73,139.64,271.0028]
[1720482473300,0.34,139.74,139.64,17.9028]
[1720482474616,0.34,139.74,139.65,7.1606]
[1720482476814,7.65612434,139.74,139.66,7.1599]
[1720482477018,20.0,139.73,139.67,7.1596]
[1720482477211,20.0,139.73,139.66,17.9]
[1720482477809,20.0,139.73,139.66,25.06]
[1720482478202,20.0,139.73,139.66,17.9]
[1720482478996,20.0,139.73,139.66,25.06]
[1720482480216,20.0,139.73,139.66,17.9]
[1720482482518,6.0792,139.7,139.63,25.0654]
[1720482483113,6.0792,139.7,139.63,17.9039]
[1720482483530,6.0792,139.7,139.65,7.1606]
[1720482484221,6.0792,139.7,139.63,25.0655]
[1720482487008,6.0792,139.7,139.64,7.1612]
[1720482487211,6.0792,139.7,139.65,7.1605]
[1720482487826,7.49102806,139.71,139.67,7.1596]
[1720482488121,16.257,139.72,139.67,7.1596]
[1720482488547,16.257,139.72,139.66,25.0604]
[1720482489103,16.257,139.72,139.65,7.1606]
[1720482489299,16.257,139.72,139.64,7.1608]
[1720482489501,16.257,139.72,139.65,20.0]
[1720482489929,16.257,139.72,139.65,27.1606]
[1720482490801,16.257,139.72,139.64,7.1612]
[1720482491000,0.17,139.71,139.63,25.0655]
[1720482491223,20.34,139.71,139.63,25.0656]
[1720482492323,20.34,139.71,139.64,7.1611]
[1720482492527,20.17,139.71,139.64,7.1611]
[1720482494928,16.257,139.72,139.65,17.9011]
[1720482495514,16.257,139.72,139.66,7.1598]
[1720482498633,16.257,139.72,139.65,25.0618]
[1720482499015,16.257,139.72,139.64,7.3311]
[1720482499216,16.257,139.72,139.64,7.1611]
[1720482501736,13.09091067,139.71,139.62,25.0668]
[1720482501926,12.92091067,139.7,139.63,27.1615]
[1720482503217,0.17,139.71,139.63,27.1615]
[1720482503422,12.92293502,139.7,139.63,27.1615]
[1720482503626,0.34,139.71,139.63,27.1615]
[1720482503844,0.17,139.69,139.63,27.1615]
[1720482504018,0.34,139.71,139.63,27.1615]
[1720482504215,0.17,139.69,139.63,27.1615]
[1720482504522,0.34,139.71,139.63,27.1615]
[1720482504727,0.17,139.69,139.63,27.1615]
[1720482505330,0.17,139.69,139.63,7.1615]
[1720482505536,0.34,139.7,139.63,7.1615]
[1720482505731,12.92304202,139.69,139.63,7.1615]
[1720482505930,0.34,139.7,139.63,7.1615]
[1720482506135,12.92304202,139.69,139.64,7.161]
[1720482506341,0.17,139.7,139.64,7.161]
[1720482507228,0.17,139.7,139.63,7.1616]
[1720482508323,20.0,139.71,139.64,7.1612]
[1720482508748,20.0,139.71,139.63,7.1616]
[1720482508932,12.9221262,139.7,139.63,7.1616]
[1720482509246,6.4473,139.68,139.58,17.9096]
[1720482509449,35.4005,139.67,139.58,25.0738]
[1720482509946,0.17,139.66,139.58,25.0738]
[1720482510146,0.17,139.66,139.57,7.1647]
[1720482510343,0.17,139.66,139.56,7.1653]
[1720482510344,12.92724255,139.65,139.56,7.1653]
[1720482510525,9.88,139.61,139.56,17.0453]
[1720482511055,9.88,139.61,139.56,7.1653]
[1720482511350,9.88,139.61,139.57,7.1647]
[1720482511544,9.88,139.62,139.57,17.0447]
[1720482511739,9.88,139.64,139.59,9.88]
[1720482512046,0.17,139.66,139.59,9.88]
[1720482512047,9.88,139.65,139.6,9.88]
[1720482512635,35.4005,139.67,139.59,17.9088]
[1720482512636,15.4005,139.67,139.59,17.9088]
[1720482512854,0.17,139.66,139.59,25.0725]
[1720482514457,15.4005,139.67,139.6,7.1631]
[1720482514748,15.4005,139.67,139.59,25.0724]
[1720482515253,13.09600388,139.66,139.59,25.0724]
[1720482515421,15.4005,139.67,139.59,25.0724]
[1720482515750,12.92600683,139.66,139.6,7.1632]
[1720482515928,15.4005,139.67,139.6,7.1632]
[1720482516128,12.92583997,139.66,139.6,7.1632]
[1720482516429,15.4005,139.67,139.59,17.9088]
[1720482516830,12.92615167,139.66,139.59,17.9088]
[1720482517041,15.4005,139.67,139.59,25.0722]
[1720482517244,12.92615167,139.66,139.6,7.1629]
[1720482517451,15.4005,139.67,139.59,17.9088]
[1720482517828,15.4005,139.67,139.6,7.1631]
[1720482518039,12.9255996,139.66,139.6,7.1631]
[1720482518240,15.4005,139.67,139.6,7.1631]
[1720482518853,15.4005,139.67,139.61,7.1628]
[1720482519349,15.4005,139.67,139.6,7.1632]
[1720482520056,15.4005,139.67,139.61,7.1627]
[1720482520647,15.4005,139.67,139.6,7.1631]
[1720482522037,15.4005,139.67,139.61,7.1627]
[1720482523047,15.4005,139.67,139.6,7.1632]
[1720482524453,15.4005,139.67,139.61,7.1627]
[1720482524655,6.4473,139.68,139.6,19.75]
[1720482524871,6.4473,139.68,139.63,7.1616]
[1720482525158,15.831,139.71,139.64,7.1611]
[1720482525455,20.0,139.7,139.65,25.0616]
[1720482525753,20.0,139.7,139.65,17.9013]
[1720482526143,13.8752688,139.72,139.67,7.1593]
[1720482526346,13.8752688,139.72,139.65,25.0616]
[1720482526560,13.8752688,139.72,139.66,27.1601]
[1720482527082,6.3794,139.72,139.66,27.1601]
[1720482527360,15.6514,139.74,139.67,7.1595]
[1720482528256,7.49397882,139.75,139.68,7.1591]
[1720482528465,32.91890352,139.74,139.68,7.1591]
[1720482528643,20.0,139.74,139.68,7.1591]
[1720482528844,20.0,139.74,139.66,20.17]
[1720482529046,20.0,139.74,139.67,7.3296]
[1720482532547,20.0,139.74,139.7,9.86]
[1720482533362,29.86,139.74,139.69,9.86]
[1720482533578,9.86,139.72,139.67,9.86]
[1720482534649,9.86,139.71,139.66,29.86]
[1720482534843,9.86,139.71,139.64,9.86]
[1720482534844,15.597,139.71,139.64,9.86]
[1720482535063,9.86,139.68,139.59,300.9354]
[1720482535260,9.86,139.65,139.59,17.9093]
[1720482535464,9.86,139.65,139.6,9.86]
[1720482535658,9.86,139.64,139.59,9.86]
[1720482536170,25.457,139.64,139.59,9.86]
[1720482536374,15.597,139.64,139.58,9.86]
[1720482536677,9.86,139.63,139.58,9.86]
[1720482537459,15.597,139.64,139.59,9.86]
[1720482537670,9.86,139.65,139.6,9.86]
[1720482538050,17.35581058,139.66,139.61,9.86]
[1720482538595,7.49581058,139.66,139.6,7.1632]
[1720482538791,7.49581058,139.66,139.59,7.1637]
[1720482539150,15.114,139.68,139.62,7.1622]
[1720482539353,15.114,139.68,139.63,7.1615]
[1720482539657,6.1084,139.7,139.62,25.067]
[1720482539854,32.92361498,139.69,139.62,25.067]
[1720482540180,20.0,139.69,139.63,7.1617]
[1720482540675,20.0,139.69,139.62,25.067]
[1720482541058,20.0,139.69,139.62,17.9049]
[1720482541463,20.0,139.69,139.59,17.909]
[1720482541464,0.17,139.68,139.59,17.909]
[1720482541665,0.17,139.68,139.6,20.0]
[1720482541862,20.0,139.69,139.61,17.9064]
[1720482542258,20.0,139.69,139.62,7.1622]
[1720482542964,20.0,139.69,139.61,25.0691]
[1720482543966,20.0,139.69,139.6,20.17]
[1720482544170,20.0,139.69,139.61,0.17]
[1720482544766,20.0,139.69,139.61,7.3327]
[1720482556087,0.17,139.68,139.6,45.0708]
[1720482556282,0.17,139.68,139.6,20.0]
[1720482556283,15.1273,139.67,139.6,20.0]
[1720482556486,15.1273,139.67,139.57,17.9118]
[1720482556686,15.1273,139.67,139.58,20.0]
[1720482556991,0.17,139.66,139.58,20.0]
[1720482557188,0.17,139.64,139.55,19.75]
[1720482557374,19.75,139.63,139.54,0.8678871]
[1720482557690,15.0661,139.59,139.54,0.8678871]
[1720482565592,20.17,139.58,139.54,0.8678871]
[1720482565789,20.34,139.58,139.54,0.8678871]
[1720482566697,7.49133563,139.57,139.54,0.8678871]
[1720482570686,6.5188,139.55,139.54,0.8678871]
[1720482571000,6.6888,139.55,139.54,0.8678871]
[1720482571485,6.3488,139.55,139.54,0.8678871]
[1720482571679,6.5248,139.54,139.47,20.0]
[1720482572578,6.5248,139.54,139.43,17.9295]
[1720482572579,0.17,139.53,139.43,17.9295]
[1720482572775,0.17,139.53,139.43,25.1015]
[1720482572995,20.17,139.53,139.44,7.1713]
[1720482573202,20.17,139.53,139.43,25.1014]
[1720482573611,0.17,139.54,139.43,17.9295]
[1720482573612,0.17,139.51,139.43,17.9295]
[1720482573786,20.17,139.51,139.43,17.9295]
[1720482574196,20.17,139.51,139.42,7.1721]
[1720482574610,20.17,139.51,139.43,7.1719]
[1720482574810,20.0,139.51,139.42,17.9305]
[1720482575099,20.0,139.51,139.44,7.1715]
[1720482575398,20.0,139.51,139.42,17.9305]
[1720482575703,20.0,139.51,139.44,7.171]
[1720482576004,20.0,139.51,139.44,7.1714]
[1720482576685,20.0,139.51,139.43,7.1719]
[1720482577179,7.49103117,139.5,139.43,7.1719]
[1720482577802,20.0,139.51,139.44,18.0982]
[1720482577994,20.0,139.51,139.45,7.1706]
[1720482579894,20.0,139.51,139.44,25.2696]
[1720482580299,20.0,139.51,139.41,18.102]
[1720482580607,20.0,139.51,139.42,20.17]
[1720482580810,20.0,139.51,139.42,27.3423]
[1720482581988,0.34,139.5,139.4,8.0413871]
[1720482582791,0.34,139.5,139.41,7.173]
[1720482582998,0.34,139.5,139.42,7.1725]
[1720482583197,0.34,139.5,139.4,25.9742871]
[1720482584514,0.34,139.5,139.41,7.1729]
[1720482588503,0.17,139.48,139.41,7.1729]
[1720482588707,7.49181903,139.49,139.41,7.1729]
[1720482589300,7.49181903,139.49,139.42,18.1006]
[1720482589498,7.49181903,139.49,139.42,25.1027]
[1720482590409,7.49181903,139.49,139.42,17.9306]
[1720482592708,7.49181903,139.49,139.44,9.9]
[1720482592901,7.49181903,139.49,139.45,9.9]
[1720482593103,7.49181903,139.49,139.44,9.9]
[1720482593994,7.49181903,139.49,139.42,17.9306]
[1720482594189,7.49181903,139.49,139.44,9.9]
[1720482596413,7.49181903,139.49,139.43,9.9]
[1720482596919,0.17,139.48,139.4,8.0408871]
[1720482597117,0.17,139.48,139.43,9.9]
[1720482597320,0.17,139.48,139.41,7.173]
[1720482597321,7.49181903,139.49,139.47,3.0]
[1720482598897,7.49181903,139.49,139.47,12.9]
[1720482599217,22.8939,139.52,139.48,9.9]
[1720482599405,7.48073398,139.53,139.5,9.9]
[1720482599593,16.3369,139.55,139.5,9.9]
[1720482600322,23.27902961,139.56,139.52,9.9]
[1720482600498,15.7947,139.6,139.54,7.1662]
[1720482600800,6.3405,139.62,139.57,9.9]
[1720482601006,22.7485581,139.62,139.56,9.9]
[1720482601428,22.7485581,139.62,139.51,7.1675]
[1720482601714,8.93238972,139.61,139.48,6.6642]
[1720482601895,8.93238972,139.61,139.51,9.9]
[1720482602100,9.9,139.59,139.54,9.9]
[1720482602299,20.0,139.58,139.54,9.9]
[1720482602719,20.0,139.59,139.51,7.1678]
[1720482602900,20.0,139.6,139.51,7.1678]
[1720482603295,20.0,139.6,139.53,7.1668]
[1720482603491,0.17,139.6,139.52,7.1673]
[1720482603714,0.17,139.6,139.51,25.0863]
[1720482604103,0.34,139.61,139.51,25.0863]
[1720482604510,13.81616838,139.62,139.52,7.1673]
[1720482604694,20.0,139.61,139.53,7.1668]
[1720482605295,20.0,139.61,139.51,17.9185]
[1720482605906,0.17,139.6,139.51,17.9185]
[1720482606606,0.17,139.6,139.51,25.0864]
[1720482606924,20.0,139.61,139.51,17.9185]
[1720482607123,20.0,139.61,139.52,7.3373]
[1720482607322,0.34,139.6,139.51,17.9185]
[1720482608207,0.34,139.6,139.48,37.6931]
[1720482608526,0.34,139.6,139.49,27.1688]
[1720482608720,0.17,139.6,139.5,18.0905]
[1720482609022,0.17,139.6,139.51,7.1675]
[1720482609231,0.17,139.6,139.5,18.0905]
[1720482609232,20.0,139.61,139.52,7.1672]
[1720482609622,0.17,139.6,139.51,7.1678]
[1720482610306,0.17,139.6,139.52,7.1671]
[1720482610724,13.81616838,139.62,139.55,7.1655]
[1720482610912,13.81616838,139.62,139.54,17.9151]
[1720482611420,13.81616838,139.62,139.54,25.0814]
[1720482612119,20.0,139.61,139.54,25.0814]
[1720482612512,20.0,139.61,139.51,37.6891]
[1720482612707,20.0,139.61,139.52,20.17]
[1720482612910,7.48132514,139.6,139.52,20.17]
[1720482613210,7.48132514,139.6,139.52,20.0]